bitfinex-derivatives/quotes_BTCF0:USTF0_20210404
["timestamp","ask_amount","ask_price","bid_price","bid_amount"]
[1617498399027,1.0,56466.0,56463.0,0.5178111]
[1617498399226,1.11708,56466.0,56463.0,0.5178111]
[1617498399427,1.11708,56466.0,56461.0,0.51785458]
[1617498399827,1.0,56464.0,56459.0,0.51785801]
[1617498400027,0.10725655,56460.0,56459.0,0.51785801]
[1617498400428,0.10725655,56460.0,56445.0,0.60776625]
[1617498400628,3.4466,56449.0,56445.0,0.60776625]
[1617498400828,3.55919,56449.0,56443.0,0.51383367]
[1617498401629,0.11259,56449.0,56442.0,0.5138437]
[1617498401829,1.0,56444.0,56442.0,0.5138437]
[1617498402029,1.0,56444.0,56441.0,0.2467822]
[1617498402030,0.10725655,56443.0,56441.0,0.2467822]
[1617498402829,0.0537,56442.0,56441.0,0.2467822]
[1617498403029,0.15853,56442.0,56441.0,0.2467822]
[1617498403229,1.15853,56442.0,56441.0,0.2467822]
[1617498404832,0.15853,56442.0,56441.0,0.2467822]
[1617498405031,0.10725655,56443.0,56441.0,0.2467822]
[1617498405232,0.10725655,56443.0,56441.0,0.4183322]
[1617498406032,0.10725655,56443.0,56442.0,0.10725655]
[1617498406435,0.10725655,56443.0,56441.0,0.2467822]
[1617498406632,1.25658655,56443.0,56441.0,0.2467822]
[1617498407035,1.0,56442.0,56441.0,0.2467822]
[1617498407239,0.10725655,56443.0,56441.0,0.2467822]
[1617498407438,0.10725655,56443.0,56441.0,0.3567322]
[1617498407639,0.10725655,56443.0,56442.0,0.4646]
[1617498408236,0.10725655,56443.0,56442.0,0.55802768]
[1617498408640,1.10725655,56443.0,56442.0,0.55802768]
[1617498408842,0.10725655,56443.0,56442.0,0.55802768]
[1617498409038,0.10725655,56443.0,56442.0,0.4646]
[1617498409235,1.10725655,56443.0,56442.0,0.4646]
[1617498409639,0.10725655,56443.0,56442.0,0.4646]
[1617498409845,0.10725655,56443.0,56442.0,0.60637]
[1617498410935,3.3426,56479.0,56442.0,1.08028422]
[1617498411136,1.0,56462.0,56442.0,0.56637]
[1617498411335,3.3426,56479.0,56442.0,0.56637]
[1617498411336,1.0,56466.0,56442.0,0.56637]
[1617498411537,1.0,56466.0,56442.0,0.4246]
[1617498411736,1.0,56454.0,56442.0,0.4246]
[1617498411937,3.5426,56479.0,56442.0,0.4246]
[1617498411938,0.10725655,56443.0,56442.0,0.4246]
[1617498417042,1.78014678,56483.0,56442.0,0.4246]
[1617498417243,1.78014678,56483.0,56442.0,0.55955]
[1617498417443,1.0,56463.0,56442.0,0.55955]
[1617498417643,1.0,56457.0,56442.0,0.55955]
[1617498418043,1.0,56457.0,56456.0,0.10725655]
[1617498419245,1.0,56459.0,56456.0,0.10725655]
[1617498419644,1.0,56460.0,56456.0,0.10725655]
[1617498420142,0.10725655,56457.0,56456.0,0.10725655]
[1617498422045,0.10725655,56457.0,56445.0,0.45105751]
[1617498422445,1.10725655,56457.0,56445.0,0.45105751]
[1617498422645,0.10725655,56457.0,56447.0,0.45115499]
[1617498422845,1.0,56459.0,56447.0,0.45115499]
[1617498423045,1.0,56464.0,56444.0,0.45113869]
[1617498423447,1.0,56465.0,56448.0,0.45133049]
[1617498423646,1.0,56491.0,56464.0,3.1744]
[1617498423846,0.28088876,56492.0,56464.0,3.30961]
[1617498424146,1.0,56594.0,56464.0,3.30961]
[1617498424147,0.28105726,56496.0,56491.0,0.10725655]
[1617498424348,0.28105726,56496.0,56491.0,0.25626655]
[1617498424545,0.28105726,56496.0,56495.0,3.4631]
[1617498424747,0.2816102,56506.0,56495.0,3.4631]
[1617498424946,1.0,56501.0,56495.0,3.4631]
[1617498425148,1.0,56499.0,56495.0,3.4631]
[1617498425949,1.0,56504.0,56495.0,3.4631]
[1617498426150,0.10725655,56496.0,56495.0,3.4631]
[1617498430052,0.10725655,56496.0,56492.0,0.4601]
[1617498431861,0.25966655,56496.0,56492.0,0.4601]
[1617498432854,1.0,56493.0,56492.0,0.4601]
[1617498435556,2.5,56493.0,56492.0,0.4601]
[1617498435956,7.5,56493.0,56492.0,0.4601]
[1617498436556,7.7,56493.0,56492.0,0.4601]
[1617498437557,7.98009287,56493.0,56492.0,0.4601]
[1617498437758,7.78009287,56493.0,56492.0,0.4601]
[1617498438659,7.98009287,56493.0,56492.0,0.4601]
[1617498438860,1.98009287,56493.0,56492.0,0.45906216]
[1617498439058,7.98009287,56493.0,56492.0,0.45906216]
[1617498439662,8.3158941,56493.0,56492.0,0.45906216]
[1617498440061,3.1158941,56493.0,56492.0,0.45906216]
[1617498440664,2.1158941,56493.0,56492.0,0.45906216]
[1617498440865,3.1158941,56493.0,56492.0,0.45906216]
[1617498441865,1.6158941,56493.0,56492.0,0.45906216]
[1617498442064,1.6158941,56493.0,56492.0,0.56445216]
[1617498442266,1.0,56493.0,56492.0,0.56445216]
[1617498443068,0.10725655,56496.0,56492.0,0.56445216]
[1617498443667,1.0,56493.0,56492.0,0.45906216]
[1617498444471,6.0267,56493.0,56492.0,0.45906216]
[1617498445075,11.0267,56493.0,56492.0,0.45906216]
[1617498445772,11.64564379,56493.0,56492.0,0.45906216]
[1617498446674,5.64564379,56493.0,56492.0,0.45906216]
[1617498446874,6.84564379,56493.0,56492.0,0.45906216]
[1617498447074,11.84564379,56493.0,56492.0,0.45906216]
[1617498448275,12.25772244,56493.0,56492.0,0.45906216]
[1617498448474,12.31002244,56493.0,56492.0,0.45906216]
[1617498448675,2.58332244,56493.0,56492.0,0.45906216]
[1617498448874,2.53102244,56493.0,56492.0,0.45906216]
[1617498449075,2.03102244,56493.0,56492.0,0.45802418]
[1617498449475,2.03102244,56493.0,56492.0,0.57479418]
[1617498449675,0.61894379,56493.0,56492.0,0.57479418]
[1617498450279,0.28134661,56493.0,56492.0,0.57479418]
[1617498450677,0.10725655,56496.0,56492.0,0.57479418]
[1617498452279,0.10725655,56496.0,56495.0,0.10725655]
[1617498455082,5.655e-05,56496.0,56495.0,0.10725655]
[1617498455885,5.655e-05,56496.0,56495.0,2.86535655]
[1617498456119,5.655e-05,56496.0,56495.0,1.10725655]
[1617498456284,0.41488812,56525.0,56495.0,1.10725655]
[1617498456485,0.41488812,56525.0,56517.0,3.0569]
[1617498456684,3.4556,56571.0,56517.0,3.16981]
[1617498456685,0.41516633,56530.0,56517.0,3.16981]
[1617498457085,0.4727523,56547.0,56523.0,1.0]
[1617498457284,0.4727523,56547.0,56524.0,1.0]
[1617498457685,0.4727523,56547.0,56517.0,3.16981]
[1617498457686,0.47317621,56552.0,56529.0,1.0]
[1617498457885,0.47317621,56552.0,56529.0,1.11575]
[1617498458112,0.58074882,56570.0,56529.0,0.11575]
[1617498458113,0.47350638,56555.0,56529.0,0.11575]
[1617498458285,0.47350638,56555.0,56549.0,0.10725655]
[1617498458513,0.58074882,56570.0,56549.0,0.21156655]
[1617498458514,0.24884594,56551.0,56549.0,0.21156655]
[1617498458887,0.24884711,56554.0,56549.0,0.21156655]
[1617498459287,0.37327067,56580.0,56549.0,0.21156655]
[1617498459288,1.24884283,56562.0,56549.0,0.21156655]
[1617498459488,0.24884283,56562.0,56549.0,0.21156655]
[1617498459687,0.24883752,56561.0,56549.0,0.21156655]
[1617498460287,0.24883752,56561.0,56560.0,0.10725655]
[1617498460689,0.24882782,56564.0,56560.0,0.10725655]
[1617498461892,0.24882782,56564.0,56538.0,1.0]
[1617498462088,1.0,56561.0,56530.0,0.51498966]
[1617498462289,1.0,56543.0,56530.0,0.51498966]
[1617498462489,1.0,56543.0,56514.0,1.0]
[1617498462490,1.16328,56543.0,56526.0,0.51503221]
[1617498462689,0.16328,56543.0,56526.0,0.51503221]
[1617498462892,0.16328,56543.0,56517.0,1.57683608]
[1617498462893,0.16328,56543.0,56516.0,1.0]
[1617498463290,1.0,56542.0,56514.0,1.0]
[1617498463694,1.0,56541.0,56513.0,1.0]
[1617498464198,1.16328,56543.0,56514.0,1.0]
[1617498464393,1.16328,56543.0,56503.0,0.56502649]
[1617498464394,0.16328,56543.0,56535.0,0.10725655]
[1617498464592,1.0,56554.0,56535.0,0.10725655]
[1617498464805,1.0,56556.0,56535.0,0.10725655]
[1617498465600,3.2661,56567.0,56535.0,0.10725655]
[1617498465802,1.0,56566.0,56538.0,1.0]
[1617498466194,1.0,56566.0,56535.0,0.10725655]
[1617498466195,1.0,56567.0,56542.0,3.0347]
[1617498466394,1.0,56572.0,56556.0,0.10725655]
[1617498466598,1.0,56572.0,56556.0,0.25248655]
[1617498466794,1.5,56584.0,56556.0,0.25248655]
[1617498466795,1.0,56568.0,56556.0,0.25248655]
[1617498467597,1.0,56565.0,56556.0,0.25248655]
[1617498467795,1.0,56563.0,56556.0,0.25248655]
[1617498467999,1.0,56563.0,56556.0,0.10725655]
[1617498468194,1.0,56561.0,56556.0,0.10725655]
[1617498468396,0.10725655,56557.0,56556.0,0.10725655]
[1617498469595,1.0,56565.0,56556.0,0.10725655]
[1617498469793,0.37325742,56580.0,56556.0,0.24480655]
[1617498470194,0.58061004,56590.0,56556.0,0.24480655]
[1617498470195,1.0,56584.0,56556.0,1.24480655]
[1617498470396,0.10725655,56572.0,56556.0,0.13755]
[1617498470794,1.0,56570.0,56556.0,0.13755]
[1617498470996,0.10725655,56572.0,56556.0,0.13755]
[1617498472194,1.0,56569.0,56556.0,0.13755]
[1617498472395,0.10725655,56572.0,56556.0,0.13755]
[1617498472396,1.970915,56588.0,56559.0,0.10725655]
[1617498472595,1.0,56572.0,56559.0,0.10725655]
[1617498472796,0.47097148,56589.0,56559.0,0.10725655]
[1617498473198,1.0,56584.0,56559.0,0.10725655]
[1617498473398,1.0,56584.0,56564.0,3.3525]
[1617498473601,0.47114353,56591.0,56564.0,3.3525]
[1617498473602,1.0,56583.0,56564.0,3.3525]
[1617498473999,1.0,56577.0,56564.0,3.3525]
[1617498474200,1.0,56576.0,56564.0,3.3525]
[1617498474400,0.10725655,56565.0,56564.0,3.3525]
[1617498475403,0.10725655,56565.0,56560.0,0.4848]
[1617498476207,1.0,56564.0,56560.0,0.4848]
[1617498476404,0.10725655,56565.0,56560.0,0.4848]
[1617498476805,1.0,56562.0,56560.0,0.4848]
[1617498477005,0.10725655,56565.0,56560.0,0.4848]
[1617498477006,1.0,56561.0,56560.0,0.4848]
[1617498477207,1.1463,56561.0,56560.0,0.4848]
[1617498477407,0.1463,56561.0,56560.0,0.4848]
[1617498478408,0.10725655,56565.0,56560.0,0.4848]
[1617498479612,1.0,56561.0,56560.0,0.4848]
[1617498479810,1.11328,56561.0,56560.0,0.4848]
[1617498480211,0.11328,56561.0,56560.0,0.4848]
[1617498480411,0.11328,56561.0,56560.0,0.48376318]
[1617498480412,1.11328,56561.0,56560.0,0.48376318]
[1617498481312,0.11328,56561.0,56560.0,0.48376318]
[1617498481511,1.0,56564.0,56560.0,0.48376318]
[1617498481711,0.10725655,56565.0,56560.0,0.64000318]
[1617498481912,1.10725655,56565.0,56560.0,0.64000318]
[1617498482311,0.10725655,56565.0,56560.0,0.64000318]
[1617498482511,1.10725655,56565.0,56563.0,0.10725655]
[1617498482912,0.10725655,56565.0,56563.0,0.10725655]
[1617498483512,0.10725655,56565.0,56560.0,0.64000318]
[1617498487021,1.0,56563.0,56560.0,0.64000318]
[1617498487218,1.0,56563.0,56560.0,0.48376318]
[1617498487420,1.0,56561.0,56560.0,0.48376318]
[1617498488224,0.10725655,56565.0,56560.0,0.48376318]
[1617498488626,1.0,56561.0,56560.0,0.48376318]
[1617498489225,1.0,56563.0,56560.0,0.48376318]
[1617498489425,1.10725655,56565.0,56560.0,0.61915318]
[1617498489824,1.0,56563.0,56560.0,0.61915318]
[1617498490025,0.10725655,56565.0,56560.0,0.61915318]
[1617498490726,1.0,56564.0,56560.0,0.61915318]
[1617498490927,1.0,56563.0,56560.0,0.61915318]
[1617498491528,1.0,56564.0,56560.0,0.61915318]
[1617498491726,1.0,56563.0,56560.0,0.61915318]
[1617498492128,1.10725655,56565.0,56560.0,0.61915318]
[1617498492831,0.10725655,56565.0,56560.0,0.61915318]
[1617498495134,0.10725655,56565.0,56560.0,0.48376318]
[1617498495335,1.0,56561.0,56560.0,0.48376318]
[1617498497034,0.10725655,56565.0,56560.0,0.48376318]
[1617498497035,1.0,56563.0,56560.0,0.48376318]
[1617498497535,1.10725655,56565.0,56560.0,0.48376318]
[1617498497935,0.10725655,56565.0,56560.0,0.48376318]
[1617498498138,1.0,56562.0,56560.0,0.48376318]
[1617498498337,1.0,56561.0,56560.0,0.48376318]
[1617498498537,0.10725655,56565.0,56560.0,0.48376318]
[1617498498737,1.10605,56561.0,56560.0,0.48376318]
[1617498499338,1.10605,56561.0,56560.0,0.48272641]
[1617498500139,0.10605,56561.0,56560.0,0.48272641]
[1617498500538,1.10605,56561.0,56560.0,0.48272641]
[1617498500939,0.10605,56561.0,56560.0,0.48272641]
[1617498501139,1.10725655,56565.0,56560.0,0.48272641]
[1617498501340,0.10725655,56565.0,56560.0,0.48272641]
[1617498501539,1.10725655,56565.0,56560.0,0.58980641]
[1617498501940,1.0,56563.0,56560.0,0.58980641]
[1617498502141,1.0,56562.0,56560.0,0.58980641]
[1617498502942,1.0,56564.0,56560.0,0.58980641]
[1617498503145,0.10725655,56565.0,56560.0,0.58980641]
[1617498504152,0.10725655,56565.0,56560.0,0.48272641]
[1617498504448,1.10725655,56565.0,56560.0,0.48272641]
[1617498504847,0.10725655,56565.0,56560.0,0.48272641]
[1617498505047,1.0,56561.0,56560.0,0.48272641]
[1617498507852,0.10725655,56565.0,56560.0,0.48272641]
[1617498508053,0.10725655,56565.0,56560.0,0.60012641]
[1617498508653,0.10725655,56565.0,56562.0,0.10725655]
[1617498510654,1.10725655,56571.0,56562.0,0.10725655]
[1617498510855,0.10725655,56571.0,56562.0,0.10725655]
[1617498511055,1.28373066,56573.0,56562.0,0.10725655]
[1617498511255,0.63113296,56563.0,56562.0,0.10725655]
[1617498511455,0.63113296,56563.0,56562.0,3.08325655]
[1617498511657,0.28688731,56563.0,56562.0,3.08325655]
[1617498512059,0.28736201,56566.0,56562.0,3.08325655]
[1617498512657,0.28750495,56567.0,56563.0,0.06218739]
[1617498513062,0.28755776,56568.0,56563.0,0.43407649]
[1617498513558,0.67037426,56575.0,56564.0,0.37187401]
[1617498513559,0.28767903,56569.0,56564.0,0.37187401]
[1617498513757,0.28767903,56569.0,56564.0,0.42547401]
[1617498513959,0.25187903,56569.0,56564.0,0.42547401]
[1617498514159,0.17427903,56569.0,56564.0,0.42547401]
[1617498514360,0.34527404,56573.0,56565.0,0.43404501]
[1617498514562,0.34527404,56573.0,56572.0,0.10725655]
[1617498514760,0.42242319,56579.0,56572.0,0.22294655]
[1617498515560,0.42242319,56579.0,56574.0,1.0]
[1617498515760,0.42280158,56581.0,56574.0,1.0]
[1617498515960,0.42280158,56581.0,56572.0,0.27644655]
[1617498515961,0.42280158,56581.0,56575.0,1.0]
[1617498516161,0.42290026,56582.0,56575.0,1.0]
[1617498516361,0.42290026,56582.0,56577.0,1.0]
[1617498516561,0.42290026,56582.0,56572.0,0.27644655]
[1617498516562,0.4230456,56583.0,56581.0,3.14945655]
[1617498516964,0.24869275,56582.0,56581.0,3.14945655]
[1617498517165,0.24869275,56582.0,56581.0,4.14945655]
[1617498517565,0.67221593,56589.0,56581.0,4.14945655]
[1617498517968,0.42367093,56592.0,56583.0,1.0]
[1617498518365,0.42371905,56593.0,56583.0,1.0]
[1617498518567,0.42371905,56593.0,56592.0,0.10725655]
[1617498518765,0.42371905,56593.0,56592.0,0.26853655]
[1617498519266,0.42380304,56594.0,56592.0,0.26853655]
[1617498519866,0.34630304,56594.0,56593.0,3.2522]
[1617498520068,0.15440304,56594.0,56593.0,4.2522]
[1617498520268,0.48027352,56621.0,56593.0,4.2522]
[1617498520671,0.48036156,56624.0,56616.0,0.10725655]
[1617498520870,0.48036156,56624.0,56616.0,0.26714655]
[1617498521069,0.48060972,56628.0,56616.0,0.26714655]
[1617498521269,1.0,56623.0,56616.0,0.26714655]
[1617498521468,0.20014037,56623.0,56616.0,0.26714655]
[1617498521869,1.0,56627.0,56616.0,0.26714655]
[1617498522172,1.0,56624.0,56616.0,0.26714655]
[1617498522370,1.0,56624.0,56616.0,0.10725655]
[1617498522570,1.10725655,56617.0,56616.0,0.10725655]
[1617498522972,1.15965655,56617.0,56616.0,0.10725655]
[1617498523172,0.15965655,56617.0,56616.0,0.10725655]
[1617498523371,0.10725655,56617.0,56616.0,0.10725655]
[1617498526373,0.48180397,56637.0,56616.0,0.10725655]
[1617498526572,0.48180397,56637.0,56629.0,0.10725655]
[1617498526772,0.48180397,56637.0,56629.0,0.26638655]
[1617498526973,1.0,56641.0,56629.0,0.26638655]
[1617498527174,1.0,56641.0,56636.0,2.7482]
[1617498527574,0.48198213,56641.0,56636.0,2.7482]
[1617498527975,1.48225457,56642.0,56636.0,2.7482]
[1617498528374,1.20075001,56641.0,56636.0,2.7482]
[1617498528573,0.10725655,56637.0,56636.0,2.7482]
[1617498529174,0.30795665,56637.0,56636.0,2.7482]
[1617498529576,0.10725655,56637.0,56636.0,2.7482]
[1617498529977,0.30809035,56637.0,56636.0,2.7482]
[1617498530976,1.30809035,56637.0,56636.0,2.7482]
[1617498531276,0.10725655,56637.0,56636.0,2.74716451]
[1617498532176,1.10725655,56637.0,56636.0,2.74716451]
[1617498533177,0.10725655,56637.0,56636.0,2.74716451]
[1617498534276,0.10725655,56637.0,56636.0,2.88548451]
[1617498534677,0.10725655,56637.0,56636.0,2.99274106]
[1617498537382,1.0,56661.0,56636.0,2.99274106]
[1617498537584,1.0,56661.0,56636.0,0.24557655]
[1617498537783,1.0,56661.0,56654.0,3.0794]
[1617498537981,1.0,56661.0,56654.0,3.21859]
[1617498538483,1.0,56662.0,56654.0,3.21859]
[1617498538682,0.10725655,56655.0,56654.0,3.21859]
[1617498540882,0.34563967,56663.0,56654.0,3.21859]
[1617498540883,0.34598875,56669.0,56654.0,3.21859]
[1617498541083,0.34598875,56669.0,56654.0,0.13919]
[1617498541283,0.34598875,56669.0,56668.0,3.0614]
[1617498541482,0.34616108,56672.0,56668.0,3.2234]
[1617498541885,1.3465848,56678.0,56668.0,3.2234]
[1617498542285,1.0,56678.0,56668.0,3.2234]
[1617498542485,0.34438873,56687.0,56668.0,3.2234]
[1617498542684,1.0,56680.0,56668.0,3.2234]
[1617498542885,1.0,56680.0,56678.0,0.10725655]
[1617498543485,1.0,56681.0,56678.0,0.10725655]
[1617498543887,1.0,56682.0,56678.0,0.10622155]
[1617498544288,1.0,56685.0,56678.0,0.10622155]
[1617498544887,0.10725655,56679.0,56678.0,0.10622155]
[1617498550800,1.10725655,56679.0,56678.0,0.10622155]
[1617498552098,1.10725655,56679.0,56669.0,0.4544]
[1617498552699,1.0,56675.0,56669.0,0.4544]
[1617498552901,0.10725655,56670.0,56669.0,0.4544]
[1617498553500,1.0,56677.0,56669.0,0.4544]
[1617498553700,1.0,56677.0,56669.0,3.9187]
[1617498553899,1.34510859,56694.0,56669.0,0.4544]
[1617498554100,1.0,56694.0,56672.0,3.4664]
[1617498554800,1.0,56694.0,56689.0,0.10725655]
[1617498555202,1.0,56695.0,56693.0,3.2539]
[1617498555603,1.0,56698.0,56693.0,3.25286538]
[1617498555803,0.657,56696.0,56693.0,3.25286538]
[1617498556402,0.657,56696.0,56689.0,0.10725655]
[1617498556603,0.657,56696.0,56695.0,3.4942]
[1617498556804,0.657,56696.0,56695.0,3.60145655]
[1617498557202,0.657,56696.0,56695.0,4.60145655]
[1617498558004,0.657,56696.0,56695.0,3.60145655]
[1617498559004,0.657,56696.0,56695.0,0.10725655]
[1617498559405,1.657,56696.0,56695.0,0.10725655]
[1617498559607,0.657,56696.0,56695.0,0.10725655]
[1617498560608,0.657,56696.0,56695.0,3.41785655]
[1617498563533,1.0,56699.0,56695.0,3.41785655]
[1617498563713,1.0,56696.0,56675.0,0.4559]
[1617498564115,1.0,56678.0,56675.0,0.4559]
[1617498564314,1.0,56676.0,56675.0,0.4559]
[1617498564914,1.10725655,56676.0,56675.0,0.4559]
[1617498565115,2.60725655,56676.0,56675.0,0.4559]
[1617498565315,1.60725655,56676.0,56675.0,0.4559]
[1617498565517,2.60725655,56676.0,56675.0,0.4559]
[1617498565916,1.60725655,56676.0,56675.0,0.4559]
[1617498566118,1.60725655,56676.0,56675.0,0.45486517]
[1617498566119,2.60725655,56676.0,56675.0,0.45486517]
[1617498566917,1.60725655,56676.0,56675.0,0.45486517]
[1617498567316,7.60725655,56676.0,56675.0,0.45486517]
[1617498567718,7.60725655,56676.0,56675.0,0.40311772]
[1617498568117,2.60725655,56676.0,56675.0,0.40311772]
[1617498568417,1.60725655,56676.0,56675.0,0.40311772]
[1617498568618,7.80725655,56676.0,56675.0,0.40311772]
[1617498568817,1.80725655,56676.0,56675.0,0.40311772]
[1617498569219,7.80725655,56676.0,56675.0,0.40311772]
[1617498569423,8.15274185,56676.0,56675.0,0.40311772]
[1617498569629,3.15274185,56676.0,56675.0,0.40311772]
[1617498569827,2.80725655,56676.0,56675.0,0.40311772]
[1617498570220,7.80725655,56676.0,56675.0,0.40311772]
[1617498571226,1.80725655,56676.0,56675.0,0.40311772]
[1617498571423,7.80725655,56676.0,56675.0,0.40311772]
[1617498571825,8.15287293,56676.0,56675.0,0.40311772]
[1617498572031,7.80725655,56676.0,56675.0,0.40311772]
[1617498573030,8.15297835,56676.0,56675.0,0.40311772]
[1617498573529,7.80725655,56676.0,56675.0,0.40311772]
[1617498573729,2.80725655,56676.0,56675.0,0.40311772]
[1617498574329,2.60725655,56676.0,56675.0,0.40311772]
[1617498574529,2.80725655,56676.0,56675.0,0.40311772]
[1617498574930,7.80725655,56676.0,56675.0,0.40311772]
[1617498575532,8.15301476,56676.0,56660.0,0.457]
[1617498575731,10.74561476,56676.0,56660.0,0.457]
[1617498576132,0.34533743,56670.0,56660.0,0.457]
[1617498576333,1.7,56669.0,56660.0,0.457]
[1617498576532,6.0,56661.0,56660.0,0.457]
[1617498576732,7.62614,56661.0,56660.0,0.457]
[1617498576932,7.73339655,56661.0,56660.0,0.457]
[1617498577932,1.73339655,56661.0,56660.0,0.457]
[1617498578132,7.73339655,56661.0,56603.0,0.30454251]
[1617498578333,3.5974,56645.0,56602.0,0.30455431]
[1617498578533,1.5,56644.0,56602.0,0.30455431]
[1617498578736,1.0,56609.0,56596.0,0.30458768]
[1617498578937,1.10466,56609.0,56608.0,0.10725655]
[1617498579136,0.10466,56609.0,56608.0,0.10725655]
[1617498579539,1.10466,56609.0,56608.0,0.10725655]
[1617498580940,0.10466,56609.0,56608.0,0.10725655]
[1617498581141,1.0,56620.0,56608.0,0.10725655]
[1617498581341,1.0,56623.0,56608.0,0.10725655]
[1617498581543,1.0,56625.0,56609.0,0.4801]
[1617498581741,1.0,56623.0,56609.0,0.4801]
[1617498581941,1.0,56625.0,56609.0,0.4801]
[1617498582541,1.0,56625.0,56609.0,0.63208]
[1617498582741,1.0,56642.0,56613.0,1.0]
[1617498582942,1.0,56642.0,56641.0,0.10725655]
[1617498583141,1.0,56644.0,56641.0,0.25795655]
[1617498583943,1.0,56643.0,56641.0,0.25795655]
[1617498584345,1.0,56642.0,56641.0,0.25795655]
[1617498584546,1.0,56642.0,56641.0,0.10725655]
[1617498584746,1.0,56643.0,56641.0,0.10725655]
[1617498584945,0.10725655,56648.0,56641.0,0.10725655]
[1617498585147,1.0,56644.0,56641.0,0.10725655]
[1617498585747,1.0,56643.0,56641.0,0.10725655]
[1617498586146,1.0,56642.0,56641.0,0.10725655]
[1617498587047,1.10725655,56642.0,56641.0,0.10725655]
[1617498589752,0.10725655,56642.0,56641.0,0.10725655]
[1617498590152,1.0,56646.0,56641.0,0.10725655]
[1617498590352,1.0,56661.0,56641.0,0.27815655]
[1617498590552,1.0,56662.0,56645.0,2.5919]
[1617498590751,0.42681199,56671.0,56645.0,2.5919]
[1617498590752,1.0,56664.0,56645.0,2.5919]
[1617498590952,1.0,56661.0,56646.0,0.4519]
[1617498591753,1.0,56660.0,56646.0,0.4519]
[1617498592156,1.0,56661.0,56646.0,0.4519]
[1617498592556,1.0,56663.0,56646.0,0.4519]
[1617498592755,1.0,56669.0,56646.0,0.4519]
[1617498592957,2.5,56669.0,56646.0,0.4519]
[1617498593156,1.0,56651.0,56646.0,0.4519]
[1617498593357,1.0,56647.0,56646.0,0.4519]
[1617498595057,1.10725655,56647.0,56646.0,0.4519]
[1617498595960,2.60725655,56647.0,56646.0,0.4519]
[1617498596361,2.80725655,56647.0,56646.0,0.4519]
[1617498596560,1.60725655,56647.0,56646.0,0.4519]
[1617498596760,7.60725655,56647.0,56646.0,0.4519]
[1617498597561,8.15730638,56647.0,56646.0,0.4519]
[1617498597761,8.15730638,56647.0,56646.0,0.45086474]
[1617498598162,3.15730638,56647.0,56646.0,0.45086474]
[1617498598363,1.45730638,56647.0,56646.0,0.45086474]
[1617498598564,1.0,56647.0,56646.0,0.45086474]
[1617498598967,1.10725655,56647.0,56646.0,0.55812129]
[1617498599567,0.10725655,56647.0,56646.0,0.55812129]
[1617498599768,1.10725655,56647.0,56646.0,0.55812129]
[1617498600967,1.10725655,56647.0,56646.0,0.45086474]
[1617498602971,1.10725655,56647.0,56646.0,0.55812129]
[1617498604475,0.10725655,56647.0,56646.0,0.55812129]
[1617498604678,1.10725655,56647.0,56646.0,0.55812129]
[1617498605877,0.10725655,56647.0,56646.0,0.55812129]
[1617498606078,1.0,56647.0,56646.0,0.55812129]
[1617498606277,1.0,56655.0,56646.0,0.55812129]
[1617498606480,1.0,56660.0,56646.0,0.55812129]
[1617498607081,1.0,56660.0,56659.0,0.10725655]
[1617498608083,0.35384371,56671.0,56659.0,0.24310655]
[1617498608283,0.35384371,56671.0,56660.0,2.7392]
[1617498608484,1.0,56672.0,56660.0,2.7392]
[1617498609084,1.0,56672.0,56671.0,0.10725655]
[1617498609485,0.35409524,56675.0,56671.0,0.10725655]
[1617498609685,0.43280138,56680.0,56671.0,0.10725655]
[1617498609686,0.35425028,56674.0,56671.0,0.10725655]
[1617498609886,1.0,56672.0,56660.0,2.7392]
[1617498610685,1.0,56664.0,56660.0,2.7392]
[1617498611086,1.0,56669.0,56663.0,0.10725655]
[1617498611286,1.0,56672.0,56663.0,0.10725655]
[1617498611486,1.0,56670.0,56663.0,0.10725655]
[1617498611686,1.0,56672.0,56663.0,0.10725655]
[1617498612085,1.0,56674.0,56663.0,0.10725655]
[1617498612488,0.35557058,56676.0,56663.0,0.10725655]
[1617498612686,1.0,56680.0,56663.0,0.10725655]
[1617498612886,0.35575002,56681.0,56663.0,0.10725655]
[1617498613088,0.35575002,56681.0,56680.0,0.10725655]
[1617498613288,0.35586899,56684.0,56680.0,0.24242655]
[1617498613689,0.35596913,56686.0,56680.0,0.24242655]
[1617498613888,1.35596913,56686.0,56680.0,0.24242655]
[1617498614090,0.35608197,56690.0,56680.0,0.24242655]
[1617498614590,1.35602582,56691.0,56680.0,0.24242655]
[1617498614793,1.0,56687.0,56660.0,2.7392]
[1617498614992,0.35602582,56691.0,56660.0,2.7392]
[1617498614993,1.0,56681.0,56660.0,2.7392]
[1617498615189,1.0,56681.0,56673.0,0.10725655]
[1617498615390,1.0,56679.0,56673.0,0.10725655]
[1617498615589,0.10396,56679.0,56673.0,0.10725655]
[1617498616590,1.0,56683.0,56673.0,0.10725655]
[1617498617193,1.0,56683.0,56681.0,0.10725655]
[1617498617893,1.0,56684.0,56681.0,0.10725655]
[1617498618093,0.35575114,56685.0,56681.0,0.10725655]
[1617498618493,1.0,56686.0,56681.0,0.10725655]
[1617498619295,1.0,56688.0,56681.0,0.10725655]
[1617498619494,1.0,56686.0,56681.0,0.10725655]
[1617498619896,1.0,56688.0,56681.0,0.10725655]
[1617498620497,1.35702683,56689.0,56681.0,0.10725655]
[1617498621097,1.35702683,56689.0,56688.0,0.10725655]
[1617498621707,0.35702683,56689.0,56688.0,0.10725655]
[1617498622113,1.0,56691.0,56688.0,0.10725655]
[1617498622114,0.35718628,56691.0,56688.0,0.10725655]
[1617498622318,0.657,56690.0,56688.0,0.10725655]
[1617498629714,0.657,56690.0,56689.0,3.3875]
[1617498629911,0.657,56690.0,56689.0,3.53468]
[1617498630912,1.0,56711.0,56689.0,3.53468]
[1617498631111,1.0,56712.0,56689.0,3.53468]
[1617498631310,1.0,56712.0,56710.0,0.10725655]
[1617498631511,1.0,56713.0,56710.0,0.22951655]
[1617498631911,0.3611391,56716.0,56710.0,0.22951655]
[1617498632112,0.3611391,56716.0,56713.0,2.6042]
[1617498632312,0.36152094,56722.0,56713.0,2.6042]
[1617498632511,1.0,56718.0,56713.0,2.6042]